Cogmind - Beta 11.1 @@@ ROGUE MODE // 2022.10.20 @ 19:01:08 Player: ChromeKnight Result: Destroyed by S-27 Virus with Autogun Performance ------------- Evolutions (5) 2500 Regions Visited (15) 3000 Robots Destroyed (108) 540 Value Destroyed (6982) 6982 Prototype IDs (6) 120 Alien Tech Used (0) 0 Bonus (6753) 6753 TOTAL SCORE: 19895 Bonus ------- High Alert Combat Kills 352 Follower Combat Kills 2902 Entered Garrisons 1200 Used RIF Installer 2500 Friendly Fire -201 Cogmind --------- Core Integrity 0/1000 Matter 36/300 Energy 100/100 System Corruption 6% Temperature Cool (1) Movement Flying (40) Location -5/Garrison Parts ------- > --- POWER (1) -------- (None) > --- PROPULSION (2) --- Nuclear Pulse Array > --- UTILITY (12) ----- Enhanced Optical Array Improved Signal Interpreter Improved Utility Shielding Hacking Suite System Shield System Shield Relay Coupler [NC] (27) Relay Coupler [NC] (22) Relay Coupler [Swarmer] (23) Relay Coupler [Grunt] (10) Relay Coupler [Duelist] (9) Relay Coupler [Specialist] (9) > --- WEAPON (2) ------- Precision Assault Rifle Improved Remote Datajack > --- INVENTORY (5) ---- Relay Coupler [NC] (26) Relay Coupler [NC] (25) Relay Coupler [Demolisher] (18) Relay Coupler [Hunter] (14) Improved Remote Datajack Peak State ------------ > --- POWER ------------ Backup Power I > --- PROPULSION ------- Improved Q-thruster Improved Q-thruster > --- UTILITY ---------- Enhanced Optical Array Improved Signal Interpreter Improved Utility Shielding Hacking Suite System Shield System Shield Relay Coupler [NC] Relay Coupler [NC] Relay Coupler [Swarmer] Relay Coupler [Cutter] Relay Coupler [Sentry] Relay Coupler [Specialist] > --- WEAPON ----------- KE Penetrator Improved Remote Datajack > --- INVENTORY -------- Improved Signal Interpreter Relay Coupler [NC] Relay Coupler [Duelist] Relay Coupler [Demolisher] Tesla Rifle [Rating: 71] Favorites ----------- Power Light Nuclear Core Engine Light Ion Engine Power Core Light Nuclear Core Propulsion Aluminum Leg Leg Aluminum Leg Hover Unit Gravmag System Flight Unit Cooled VTOL Module Utility Hacking Suite Device Improved Sensor Array Storage Small Storage Unit Processor Enhanced Optical Array Hackware Hacking Suite Protection Improved Light Armor Plating Weapon Remote Datajack Energy Gun Advanced Beam Rifle Energy Cannon Improved EM Pulse Cannon Ballistic Gun Heavy Assault Rifle Ballistic Cannon Improved Light Cannon Special Weapon Remote Datajack Slashing Weapon Chainsword Piercing Weapon Heavy Pick Special Melee Weapon Improved Datajack Build | -11 -10 -10 -9 -8 -8 -8 -8 -7 -7 -6 -6 -5 -5 -5 -5 ------- Run | Scr Mat Min Mat Mat Gar Mat Gar Fac Gar Fac Gar Fac Gar Fac Gar Slots Evolved 10 | . . . 2 2 . . . 2 . 2 . 2 . . . Power . | . . . . . . . . . . . . . . . . Propulsion . | . . . . . . . . . . . . . . . . Utility 10 | . . . 2 2 . . . 2 . 2 . 2 . . . Weapon . | . . . . . . . . . . . . . . . . Parts Attached 267 | 7 2 4 7 15 22 36 33 31 12 37 22 23 2 8 6 Power 26 | 1 1 1 . 2 4 3 5 3 2 2 1 1 . . . Engine 8 | 1 1 1 . . 4 . . 1 . . . . . . . Core 18 | . . . . 2 . 3 5 2 2 2 1 1 . . . Reactor . | . . . . . . . . . . . . . . . . Propulsion 50 | 2 . . 1 2 3 4 10 7 1 9 3 4 . 1 3 Treads . | . . . . . . . . . . . . . . . . Leg 24 | 2 . . 1 2 3 4 10 2 . . . . . . . Wheel . | . . . . . . . . . . . . . . . . Hover 10 | . . . . . . . . 5 1 4 . . . . . Flight 16 | . . . . . . . . . . 5 3 4 . 1 3 Utility 107 | 2 . 2 4 7 10 11 10 11 9 16 9 9 1 3 3 Device 24 | 1 . 2 2 5 4 4 3 1 . 2 . . . . . Storage 1 | 1 . . . . . . . . . . . . . . . Processor 4 | . . . . . 2 . . . . 1 . 1 . . . Hackware 59 | . . . . . 1 3 6 8 7 12 9 7 1 2 3 Protection 19 | . . . 2 2 3 4 1 2 2 1 . 1 . 1 . Artifact . | . . . . . . . . . . . . . . . . Weapon 84 | 2 1 1 2 4 5 18 8 10 . 10 9 9 1 4 . Energy Gun 14 | . . . . 2 . 1 6 2 . . 2 1 . . . Energy Cannon 2 | . . . . . . . . 1 . . 1 . . . . Ballistic Gun 30 | 2 1 1 2 2 4 11 . 2 . . 1 2 . 2 . Ballistic Cannon 1 | . . . . . . . . 1 . . . . . . . Launcher . | . . . . . . . . . . . . . . . . Special Weapon 19 | . . . . . . . . 2 . 5 3 6 1 2 . Impact Weapon . | . . . . . . . . . . . . . . . . Slashing Weapon 3 | . . . . . . . . 1 . . 2 . . . . Piercing Weapon 5 | . . . . . . . . . . 5 . . . . . Special Melee Weapon 10 | . . . . . 1 6 2 1 . . . . . . . Unidentified Prototypes 6 | . . 1 1 . . . 1 . . 1 . 1 . 1 . Parts Lost 43 | . . . . 2 10 4 4 7 4 1 4 4 2 . 1 Power 3 | . . . . . 1 . 1 . . . . . . . 1 Propulsion 8 | . . . . . 1 2 1 1 2 . . 1 . . . Utility 21 | . . . . 2 6 1 2 3 2 1 3 1 . . . Weapon 11 | . . . . . 2 1 . 3 . . 1 2 2 . . Highest Loss Streak 4 | . . . . 1 4 3 1 4 3 1 2 1 1 . 1 To Critical Strikes . | . . . . . . . . . . . . . . . . Average Slot Usage (%) 92 | . 100 100 98 94 88 94 98 95 95 91 89 78 85 90 94 Engine 1 | . 14 14 11 . 7 2 . 2 . . . . . 2 4 Core 3 | . . . . 8 1 6 8 4 7 4 . . . . . Leg 6 | . 28 28 21 18 17 16 17 2 . . . . . . . Hover 3 | . . . . . . . . 11 14 8 . . . . . Flight 3 | . . . . . . . . . . 4 13 5 11 9 5 Device 5 | . 14 14 24 32 16 12 10 6 . . . . . . . Storage 2 | . 14 14 11 9 9 9 4 . . . . . . . . Processor 4 | . . . . . 10 9 1 . . . 6 7 11 11 11 Hackware 40 | . . . . . . 11 32 49 50 56 56 53 52 50 52 Protection 3 | . . . 7 8 8 9 3 1 6 4 . . 5 4 5 Energy Gun 2 | . . . . 3 . 1 14 2 . . . . . . . Ballistic Gun 4 | . 28 28 21 14 15 14 1 1 . . . 1 . 3 5 Special Weapon 3 | . . . . . . . . 3 7 5 5 4 3 3 5 Slashing Weapon 1 | . . . . . . . . 2 7 1 1 1 . . . Naked Turns . | . . . . . . . . . . . . . . . . Heaviest Build 29 | 13 13 12 19 27 29 29 20 20 20 15 7 11 6 12 11 Greatest Support 28 | 20 20 20 20 28 28 27 25 25 21 21 10 16 16 16 16 Greatest Overweight (x) 5 | . . . . 1 1 5 1 . 1 1 . 3 . . . Average Overweight (x) . | . . . . . . . . . . . . . . . . Largest Inventory Capacity 8 | 8 8 8 8 8 8 8 8 5 5 5 5 5 5 5 5 Average Capacity 5 | 6 8 8 8 8 8 8 6 5 5 5 5 5 5 5 5 Most Carried 8 | 2 8 8 8 8 8 8 8 5 5 5 5 5 5 5 5 Average Carried 5 | 1 5 7 7 7 7 7 5 4 4 4 4 4 4 4 4 Final Capacity 8 | 8 8 8 8 8 8 8 5 5 5 5 5 5 5 5 5 Final Carried 8 | 2 8 8 8 8 8 8 5 5 5 4 5 5 3 5 5 Class Distribution -------------------- 43% | Commander-Mutant 11% | Bothacker-Mutant 11% | Commander-Sprinter 11% | Scavenger-Mutant 6% | Botlord-Mutant 5% | Bothacker-Sprinter 4% | Mutant 3% | Botlord-Sprinter Dominant Class ---------------- Mutant | -10/Materials Mutant | -10/Mines Scavenger-Mutant | -9/Materials Scavenger-Mutant | -8/Materials Scavenger-Mutant | -8/Garrison Bothacker-Mutant | -8/Materials Commander-Mutant | -8/Garrison Commander-Mutant | -7/Factory Commander-Mutant | -7/Garrison Commander-Mutant | -6/Factory Commander-Sprinter | -6/Garrison Commander-Mutant | -5/Factory Botlord-Mutant | -5/Garrison Hacker-Sprinter | -5/Factory Botlord-Mutant | -5/Garrison Resources | -11 -10 -10 -9 -8 -8 -8 -8 -7 -7 -6 -6 -5 -5 -5 -5 ----------- Run | Scr Mat Min Mat Mat Gar Mat Gar Fac Gar Fac Gar Fac Gar Fac Gar Matter Collected 5211 | 288 88 23 161 348 467 782 412 537 322 486 435 596 65 173 28 Remotely . | . . . . . . . . . . . . . . . . Salvage Created 4322 | 103 88 . 213 308 623 1025 575 650 257 115 112 122 . 103 28 Parts 257 | 7 10 . 13 17 34 69 35 25 15 8 5 9 . 7 3 Haulers Intercepted 2 | . . . . 2 . . . . . . . . . . . Recyclers Shooed 4 | . . . 1 . . . . 1 . . . 1 . 1 . Parts Field Recycled . | . . . . . . . . . . . . . . . . Retrieved Matter . | . . . . . . . . . . . . . . . . Parts Self-Destructed . | . . . . . . . . . . . . . . . . Prevented . | . . . . . . . . . . . . . . . . Kills | -11 -10 -10 -9 -8 -8 -8 -8 -7 -7 -6 -6 -5 -5 -5 -5 ------- Run | Scr Mat Min Mat Mat Gar Mat Gar Fac Gar Fac Gar Fac Gar Fac Gar Combat Hostiles Destroyed 84 | . 1 . 4 4 17 17 15 11 6 2 2 2 . 2 1 Melee 13 | . . . . . . . . 3 6 2 2 . . . . Guns 69 | . 1 . 4 4 17 17 15 6 . . . 2 . 2 1 Cannons 2 | . . . . . . . . 2 . . . . . . . Classes Destroyed 14 | 2 4 . 2 1 3 . . 2 . . . . . . . Worker 1 | . . . . . . . . 1 . . . . . . . Builder 1 | . 1 . . . . . . . . . . . . . . Tunneler 2 | 1 . . 1 . . . . . . . . . . . . Hauler 2 | . . . . 2 . . . . . . . . . . . Recycler 5 | 1 . . . . . 2 . 2 . . . . . . . Operator 2 | . 1 . . . . 1 . . . . . . . . . Watcher 10 | . 1 . . . 1 4 . 3 . . . 1 . . . Swarmer 22 | . . . . . 6 4 6 2 3 . . . . . 1 Grunt 37 | . 1 . 1 3 7 7 9 6 1 1 1 . . . . Brawler 2 | . . . 1 . . . . . 1 . . . . . . Sentry 13 | . . . 2 1 2 5 1 . 1 . 1 . . . . Specialist 1 | . . . . . 1 . . . . . . . . . . Hunter 4 | . . . . . 1 1 . 2 . . . . . . . Programmer 6 | . . . . . . . . 1 . 1 . 2 . 2 . Best Kill Streak 8 | 2 2 . 3 2 8 3 3 3 3 1 1 1 . 2 1 Combat Bots Only 8 | . 1 . 2 2 8 3 3 3 3 1 1 1 . 2 1 Max Kills in Single Turn 2 | 1 1 . 1 1 2 1 1 1 1 1 1 1 . 1 1 Gunslinging 1 | . . . . . 1 . . . . . . . . . . Exploded . | . . . . . . . . . . . . . . . . Melee 1 | . . . . . . . . 1 1 1 1 . . . . Uniques/NPCs Destroyed . | . . . . . . . . . . . . . . . . Combat | -11 -10 -10 -9 -8 -8 -8 -8 -7 -7 -6 -6 -5 -5 -5 -5 -------- Run | Scr Mat Min Mat Mat Gar Mat Gar Fac Gar Fac Gar Fac Gar Fac Gar Damage Taken 9458 | . 123 36 83 371 1250 1238 1148 1111 755 506 680 1298 420 241 198 Core 2455 | . . 10 . 83 185 35 119 334 158 212 314 636 211 63 95 Absorbed by Shields 314 | . . . . . . . . . . 67 38 204 . . 5 Redirected to Shielding 267 | . . . . . 206 . . . . . . 46 15 . . Regen/Repaired (Parts) 713 | . . . 49 . . . . 13 164 168 162 96 . 61 . Core Remaining (%) 64 | 100 . 96 100 . . . 23 . 29 . 38 . . . . Volleys Fired 591 | 3 15 3 18 30 67 87 71 72 18 37 27 80 10 23 30 Largest 2 | 2 2 2 2 2 2 2 2 2 1 1 1 1 1 1 1 Hottest 122 | 40 40 40 46 102 102 85 122 122 5 5 80 65 7 33 28 Shots Fired 858 | 6 30 6 36 60 107 172 120 96 18 37 27 80 10 24 29 Gun 696 | 6 30 6 36 60 107 172 120 76 . . 6 38 . 15 24 Cannon 11 | . . . . . . . . 11 . . . . . . . Launcher . | . . . . . . . . . . . . . . . . Special 151 | . . . . . . . . 9 18 37 21 42 10 9 5 Kinetic 531 | 6 30 6 36 53 96 164 35 38 . . 1 27 . 15 24 Thermal 157 | . . . . 7 11 8 85 36 . . 5 5 . . . Explosive . | . . . . . . . . . . . . . . . . Electromagnetic 19 | . . . . . . . . 13 . . . 6 . . . Robot Hit Streak 20 | 2 6 3 5 10 20 18 7 12 8 12 8 6 9 10 7 Robot Miss Streak 11 | 1 2 1 2 3 2 6 6 11 2 2 2 3 2 1 1 Penetration Max 1 | . . . . . . . . . . . . 1 . 1 . Secondary Targets 8 | . . . . 1 3 . 2 2 . . . . . . . Max Gunslinging Chain 1 | . . . . 1 1 . 1 1 . . . . . . . Shots Hit Robots 620 | 4 20 4 25 40 81 122 64 81 31 32 19 56 7 21 13 Core Hits 197 | 3 6 . 9 13 30 50 27 33 9 2 3 6 . 4 2 Critical Kills . | . . . . . . . . . . . . . . . . Critical Parts Destroyed 6 | . . 1 . . 2 1 1 . . . . . . 1 . Critical Strikes 15 | . . 1 . 1 3 1 4 1 1 1 1 . . 1 . Burn 5 | . . . . 1 1 . 3 . . . . . . . . Destroy 6 | . . 1 . . 2 1 1 . . . . . . 1 . Blast 1 | . . . . . . . . 1 . . . . . . . Sever 1 | . . . . . . . . . 1 . . . . . . Impale 2 | . . . . . . . . . . 1 1 . . . . Melee Attacks 122 | . . . . . 1 9 6 26 28 18 29 5 . . . Impact . | . . . . . . . . . . . . . . . . Slashing 55 | . . . . . . . . 18 28 2 2 5 . . . Piercing 43 | . . . . . . . . . . 16 27 . . . . Sneak Attacks 13 | . . . . . 1 3 . 8 1 . . . . . . Combat Hostiles 3 | . . . . . . . . 2 1 . . . . . . Follow-up Attacks . | . . . . . . . . . . . . . . . . Damage Inflicted 9321 | 50 250 33 392 635 1576 1583 1060 1539 670 165 211 676 . 340 141 Guns 7669 | 50 250 33 392 635 1576 1580 1060 953 . . . 659 . 340 141 Cannons 132 | . . . . . . . . 132 . . . . . . . Explosions 90 | . . . . . . . . 90 . . . . . . . Melee 1409 | . . . . . . . . 353 670 158 211 17 . . . Ramming 21 | . . . . . . 3 . 11 . 7 . . . . . Kinetic 5857 | 50 250 33 392 521 1385 1493 339 382 . . . 531 . 340 141 Thermal 1729 | . . . . 114 191 87 721 583 . . . 33 . . . Explosive . | . . . . . . . . . . . . . . . . Electromagnetic 305 | . . . . . . . . 210 . . . 95 . . . Impact . | . . . . . . . . . . . . . . . . Slashing 1073 | . . . . . . . . 353 670 33 . 17 . . . Piercing 336 | . . . . . . . . . . 125 211 . . . . Highest Corruption 6 | . . . . . . . . 1 5 1 1 6 6 6 6 Average Corruption 2 | . . . . . . . . 1 4 1 1 4 6 6 6 Corruption Purged . | . . . . . . . . . . . . . . . . Corruption Blocked . | . . . . . . . . . . . . . . . . Effects 178 | . . . . . . . . 27 59 6 28 8 5 17 28 Message Errors 47 | . . . . . . . . 5 10 . 11 4 3 5 9 Matter Fused 40 | . . . . . . . . 6 16 1 5 2 . 3 7 Heat Flow Errors 25 | . . . . . . . . 3 12 3 2 1 1 2 1 Energy Discharges 24 | . . . . . . . . 5 12 . 1 1 . 4 1 Parts Rejected 2 | . . . . . . . . . . . 2 . . . . Data Loss (minor) 20 | . . . . . . . . 5 2 1 5 . . 1 6 Data Loss (major) 9 | . . . . . . . . 2 3 1 . . 1 1 1 Misfires 1 | . . . . . . . . . . . . . . 1 . Alerts 9 | . . . . . . . . 1 4 . 2 . . . 2 Weapon Failures 1 | . . . . . . . . . . . . . . . 1 Overload Shots . | . . . . . . . . . . . . . . . . Overflow Damage 36 | . . . . . . . . 5 16 . 15 . . . . Projectiles . | . . . . . . . . . . . . . . . . Explosions . | . . . . . . . . . . . . . . . . Melee 36 | . . . . . . . . 5 16 . 15 . . . . Knockbacks 3 | . . . . . . . . 3 . . . . . . . Impact . | . . . . . . . . . . . . . . . . Kinetic 2 | . . . . . . . . 2 . . . . . . . Secondary 1 | . . . . . . . . 1 . . . . . . . Self-Inflicted Damage 8 | . . . . . . . . 5 . 3 . . . . . Shots . | . . . . . . . . . . . . . . . . Rammed 2 | . . . . . . . . 1 . 1 . . . . . Targets Rammed 4 | . . . . . . 2 . 1 . 1 . . . . . Kicked 2 | . . . . . . 2 . . . . . . . . . Crushed . | . . . . . . . . . . . . . . . . Highest Temperature 259 | . . . 7 11 24 107 240 227 259 236 223 149 253 196 122 Average Temperature 69 | . . . 4 11 11 27 88 56 95 101 56 76 129 98 69 Received Heat Transfer 2473 | . 42 . 24 207 477 441 495 147 174 91 142 89 126 . 18 Siege Activations . | . . . . . . . . . . . . . . . . Robots Corrupted . | . . . . . . . . . . . . . . . . Combat Hostiles . | . . . . . . . . . . . . . . . . Parts Fried 2 | . . . . . . . . 2 . . . . . . . Impact Corruptions . | . . . . . . . . . . . . . . . . Robots Melted . | . . . . . . . . . . . . . . . . Combat Hostiles . | . . . . . . . . . . . . . . . . Parts Melted 8 | . . . . . 1 1 2 3 . . . 1 . . . Heat Transferred 3726 | . . . . 296 444 222 1665 988 . . . 111 . . . Parts Sabotaged . | . . . . . . . . . . . . . . . . Parts Stolen . | . . . . . . . . . . . . . . . . Parts Stripped . | . . . . . . . . . . . . . . . . Power Chain Reactions 2 | . . . . . . . . 2 . . . . . . . Missiles Intercepted . | . . . . . . . . . . . . . . . . Alert | -11 -10 -10 -9 -8 -8 -8 -8 -7 -7 -6 -6 -5 -5 -5 -5 ------- Run | Scr Mat Min Mat Mat Gar Mat Gar Fac Gar Fac Gar Fac Gar Fac Gar Peak Influence 1244 | 10 100 84 221 98 553 476 855 932 1244 800 598 335 48 154 177 Initial 653 | . 6 39 32 9 63 269 150 448 652 653 73 313 1 25 78 Average 414 | 1 50 45 133 43 367 273 633 338 1086 552 398 92 10 58 128 Maximum Alert Level 4 | . . . 1 . 2 2 3 3 4 3 2 1 . . . Low Security (%) 34 | 100 100 100 67 100 6 16 6 32 . 15 21 85 100 100 100 Level 1 23 | . . . 32 . 62 73 15 43 . . 19 14 . . . Level 2 22 | . . . . . 30 9 29 12 7 67 58 . . . . Level 3 12 | . . . . . . . 48 12 37 16 . . . . . Level 4 6 | . . . . . . . . . 54 . . . . . . Level 5 . | . . . . . . . . . . . . . . . . High Security . | . . . . . . . . . . . . . . . . Max Security . | . . . . . . . . . . . . . . . . Squads Dispatched 29 | . 1 . . 1 . 1 . 9 . 9 . 5 . 3 . Investigation 8 | . . . . . . 1 . 3 . 2 . 1 . 1 . Extermination 15 | . . . . . . . . 5 . 5 . 4 . 1 . Reinforcement 4 | . 1 . . 1 . . . . . 1 . . . 1 . Assault 2 | . . . . . . . . 1 . 1 . . . . . Garrison . | . . . . . . . . . . . . . . . . Intercept . | . . . . . . . . . . . . . . . . Searches Triggered . | . . . . . . . . . . . . . . . . Construction Impeded . | . . . . . . . . . . . . . . . . Haulers Reinforced . | . . . . . . . . . . . . . . . . Active Scanning Responses . | . . . . . . . . . . . . . . . . Cargo Convoy Interrupts 1 | . . . . . . . . . . . . 1 . . . Alert ID Control Effect 22 | . . . . . . . . . . . 3 16 2 1 . Stealth | -11 -10 -10 -9 -8 -8 -8 -8 -7 -7 -6 -6 -5 -5 -5 -5 --------- Run | Scr Mat Min Mat Mat Gar Mat Gar Fac Gar Fac Gar Fac Gar Fac Gar Distress Signals 10 | . . . . . . 2 . 1 . . . 6 . 1 . Communications Jammed . | . . . . . . . . . . . . . . . . Distress Signals . | . . . . . . . . . . . . . . . . Times Spotted 339 | . 6 3 6 7 20 42 25 38 23 29 32 62 14 21 11 Peak Tracking Total 10 | . 1 3 3 3 7 4 6 8 7 5 7 10 9 4 2 Tactical Retreats 37 | . . 1 . . 1 2 2 4 2 2 4 10 3 3 3 Traps | -11 -10 -10 -9 -8 -8 -8 -8 -7 -7 -6 -6 -5 -5 -5 -5 ------- Run | Scr Mat Min Mat Mat Gar Mat Gar Fac Gar Fac Gar Fac Gar Fac Gar Traps Triggered 44 | . . . 1 . 2 1 5 2 12 5 10 1 2 2 1 Indirectly . | . . . . . . . . . . . . . . . . Trap Hack Attempts 25 | . . . . . . . 21 4 . . . . . . . Triggered . | . . . . . . . . . . . . . . . . Disarmed . | . . . . . . . . . . . . . . . . Reprogrammed 2 | . . . . . . . 1 1 . . . . . . . Reused . | . . . . . . . . . . . . . . . . Traps Extracted . | . . . . . . . . . . . . . . . . Installed . | . . . . . . . . . . . . . . . . Triggered . | . . . . . . . . . . . . . . . . Machines | -11 -10 -10 -9 -8 -8 -8 -8 -7 -7 -6 -6 -5 -5 -5 -5 ---------- Run | Scr Mat Min Mat Mat Gar Mat Gar Fac Gar Fac Gar Fac Gar Fac Gar Machines Disabled 40 | . 1 . . . 2 . 4 22 4 . 5 . . 1 1 Max in Single Turn 1 | . 1 . . . 1 . 1 1 1 . 1 . . 1 1 Garrison Relay 15 | . . . . . 2 . 4 . 4 . 4 . . . 1 Machines Sabotaged . | . . . . . . . . . . . . . . . . Garrisons Compromised . | . . . . . . . . . . . . . . . . Overloaded Fab Kills . | . . . . . . . . . . . . . . . . Hacking | -11 -10 -10 -9 -8 -8 -8 -8 -7 -7 -6 -6 -5 -5 -5 -5 --------- Run | Scr Mat Min Mat Mat Gar Mat Gar Fac Gar Fac Gar Fac Gar Fac Gar Machines Accessed 52 | . 3 1 3 2 . 10 . 14 . 4 . 6 . 9 . Terminals 33 | . 3 . 2 1 . 8 . 9 . 3 . 2 . 5 . Fabricators 7 | . . . . . . . . 3 . . . 2 . 2 . Repair Stations 3 | . . . 1 . . 1 . . . . . . . 1 . Recycling Units . | . . . . . . . . . . . . . . . . Scanalyzers . | . . . . . . . . . . . . . . . . Garrison Access 8 | . . . . 1 . 1 . 2 . 1 . 2 . 1 . Total Hacks 145 | . 6 1 10 5 . 23 . 42 . 13 . 14 . 31 . Successful 82 | . 4 1 9 1 . 14 . 23 . 8 . 9 . 13 . Failed 63 | . 2 . 1 4 . 9 . 19 . 5 . 5 . 18 . Catastrophic 7 | . . . . 1 . . . 1 . 1 . 1 . 3 . Database Lockouts . | . . . . . . . . . . . . . . . . Manual 117 | . 6 . 5 3 . 22 . 36 . 12 . 11 . 22 . Terminals 103 | . 6 . 5 2 . 20 . 31 . 11 . 7 . 21 . Fabricators 12 | . . . . . . . . 6 . . . 3 . 3 . Repair Stations 9 | . . . 5 . . 1 . . . . . . . 3 . Recycling Units . | . . . . . . . . . . . . . . . . Scanalyzers . | . . . . . . . . . . . . . . . . Garrison Access 20 | . . . . 3 . 2 . 5 . 2 . 4 . 4 . Terminal Hacks 5 | . . 1 . . . . . 2 . 1 . . . 1 . Record 1 | . . . . . . . . . . . . . . 1 . Robot Schematic 3 | . . . . . . . . 2 . 1 . . . . . Open Door 1 | . . 1 . . . . . . . . . . . . . Fabricator Hacks 7 | . . . . . . . . 3 . . . 2 . 2 . Load Schematic 5 | . . . . . . . . 2 . . . 2 . 1 . Build 2 | . . . . . . . . 1 . . . . . 1 . Repair Station Hacks 7 | . . . 5 . . . . . . . . . . 2 . Scan Component 4 | . . . 3 . . . . . . . . . . 1 . Repair 3 | . . . 2 . . . . . . . . . . 1 . Recycling Unit Hacks . | . . . . . . . . . . . . . . . . Scanalyzer . | . . . . . . . . . . . . . . . . Garrison Access Hacks 8 | . . . . 1 . 1 . 2 . 1 . 2 . 1 . Unlock Access 8 | . . . . 1 . 1 . 2 . 1 . 2 . 1 . Unauthorized Hacks 55 | . 4 . 4 . . 13 . 16 . 6 . 5 . 7 . Terminals 47 | . 4 . 4 . . 11 . 14 . 5 . 3 . 6 . Track 10 | . 1 . 2 . . 2 . 4 . 1 . . . . . Assimilate 3 | . . . . . . . . 2 . . . . . 1 . Botnet 26 | . 3 . 2 . . 5 . 6 . 3 . 2 . 5 . Operators 8 | . . . . . . 4 . 2 . 1 . 1 . . . Fabricators 3 | . . . . . . . . 1 . . . 1 . 1 . Liberate 1 | . . . . . . . . . . . . . . 1 . Recompile 2 | . . . . . . . . 1 . . . 1 . . . Repair Stations 1 | . . . . . . 1 . . . . . . . . . Mechanics 1 | . . . . . . 1 . . . . . . . . . Recycling Units . | . . . . . . . . . . . . . . . . Scanalyzers . | . . . . . . . . . . . . . . . . Garrison Access 4 | . . . . . . 1 . 1 . 1 . 1 . . . Reprogram 4 | . . . . . . 1 . 1 . 1 . 1 . . . Data Cores Recovered . | . . . . . . . . . . . . . . . . Used . | . . . . . . . . . . . . . . . . Hacking Detections 37 | . 3 . 2 2 . 5 . 13 . 3 . 4 . 5 . Full Trace Events 3 | . . . . . . 1 . 1 . . . . . 1 . Feedback Events . | . . . . . . . . . . . . . . . . Feedback Blocked . | . . . . . . . . . . . . . . . . Robot Schematics Acquired 3 | . . . . . . . . 2 . 1 . . . . . Robots Built 4 | . . . . . . . . 2 . . . . . 2 . Authchips 1 | . . . . . . . . . . . . . . 1 . Time 210 | . . . . . . . . 134 . . . . . 76 . Total Robot Build Rating 18 | . . . . . . . . 8 . . . . . 10 . Part Schematics Acquired . | . . . . . . . . . . . . . . . . Parts Built . | . . . . . . . . . . . . . . . . Authchips . | . . . . . . . . . . . . . . . . Time . | . . . . . . . . . . . . . . . . Total Part Build Rating . | . . . . . . . . . . . . . . . . Parts Repaired 3 | . . . 2 . . . . . . . . . . 1 . Time 71 | . . . 52 . . . . . . . . . . 19 . Parts Recycled . | . . . . . . . . . . . . . . . . Recycled Matter . | . . . . . . . . . . . . . . . . Retrieved Matter . | . . . . . . . . . . . . . . . . Retrieved Components . | . . . . . . . . . . . . . . . . Parts Scanalyzed . | . . . . . . . . . . . . . . . . Part Schematics Acquired . | . . . . . . . . . . . . . . . . Parts Damaged . | . . . . . . . . . . . . . . . . Bothacking | -11 -10 -10 -9 -8 -8 -8 -8 -7 -7 -6 -6 -5 -5 -5 -5 ------------ Run | Scr Mat Min Mat Mat Gar Mat Gar Fac Gar Fac Gar Fac Gar Fac Gar Used RIF Installer 5 | . . . . . 1 . 1 . 1 . 1 . 1 . . Threat Obfuscator 1 | . . . . . . . . . 1 . . . . . . Alert ID Control 1 | . . . . . . . . . . . 1 . . . . Program Shield 1 | . . . . . . . 1 . . . . . . . . Autooverride 1 | . . . . . . . . . . . . . 1 . . Robots Hacked 96 | . . . . . . 8 6 10 10 17 12 18 5 6 4 Non-combat 27 | . . . . . . 3 . 6 . 8 . 8 . 2 . Combat 69 | . . . . . . 5 6 4 10 9 12 10 5 4 4 Autooverrided 1 | . . . . . . . . . . . . . . . 1 Robot Hacks Applied 109 | . . . . . . 8 6 14 13 22 12 20 5 6 3 parse_system 3 | . . . . . . . . 1 . . 1 1 . . . no_distress 2 | . . . . . . . . 2 . . . . . . . find_chute 4 | . . . . . . . . . . 4 . . . . . ignore_repairs 1 | . . . . . . . . . . . . 1 . . . map_walls 1 | . . . . . . . . . . 1 . . . . . find_fabricator 2 | . . . . . . . . 1 . . . 1 . . . find_dsf 1 | . . . . . . . . 1 . . . . . . . drop_inventory 1 | . . . . . . . . . . . . 1 . . . find_station 1 | . . . . . . . . 1 . . . . . . . purge_threat 5 | . . . . . . . . . . 4 . 1 . . . reprogram_traps 1 | . . . . . . . . . . . . . . 1 . block_reporting 1 | . . . . . . . . . . . . 1 . . . map_route 1 | . . . . . . . . 1 . . . . . . . scatter_targeting 2 | . . . . . . . . . 1 . . 1 . . . broadcast_data 1 | . . . . . . . . . . . 1 . . . . spike_heat 1 | . . . . . . . . . 1 . . . . . . overload_power 3 | . . . . . . . . . . 2 . 1 . . . amplify_resonance 10 | . . . . . . . . . . 1 2 4 1 2 . wipe_record 1 | . . . . . . . . . . . . 1 . . . disable_weapons 2 | . . . . . . . . . . . . 1 . 1 . reboot_system 4 | . . . . . . 1 . . 2 . 1 . . . . go_dormant 2 | . . . . . . . . . 1 1 . . . . . overwrite_iff 8 | . . . . . . . 2 2 . . . 2 2 . . streamctrl_high 11 | . . . . . . . . 1 8 1 . . 1 . . formatsys_low 7 | . . . . . . 3 . 2 . 1 . . . 1 . formatsys_high 33 | . . . . . . 4 4 2 . 7 7 4 1 1 3 Relay Couplers Released 65 | . . . . . 8 . 18 . 15 4 15 . . . 5 Machine Destruction 61 | . . . . . 8 . 18 . 15 . 15 . . . 5 Programmers 4 | . . . . . . . . . . 4 . . . . . Attached 49 | . . . . . 1 3 6 4 6 10 8 6 1 1 3 Fabnet Peak Effective % . | . . . . . . . . . . . . . . . . Robots Rewired 1 | . . . . . 1 . . . . . . . . . . Allies Hacked 2 | . . . . . . . . . 1 . . . . 1 . Hacks Repelled 1 | . . . . . . . . . . . . . . 1 . Allies | -11 -10 -10 -9 -8 -8 -8 -8 -7 -7 -6 -6 -5 -5 -5 -5 -------- Run | Scr Mat Min Mat Mat Gar Mat Gar Fac Gar Fac Gar Fac Gar Fac Gar Total Allies 67 | . . . . . 1 7 6 11 8 9 7 6 4 4 4 Largest Group 18 | . . . . . 1 7 10 15 13 15 17 18 2 4 3 Highest-Rated Group 510 | . . . . . 5 101 128 307 292 392 481 510 91 121 70 Highest-Rated Ally 65 | . . . . . 5 18 18 40 40 47 43 65 49 41 29 Total Orders 303 | . . . . . 4 7 29 50 55 42 67 43 1 1 4 STAY 124 | . . . . . 2 3 11 22 24 14 26 18 1 . 3 ROAM 4 | . . . . . . . . 2 1 . 1 . . . . FOLLOW 95 | . . . . . 1 2 14 14 16 19 10 18 . . 1 GUARD 14 | . . . . . . . . . . 1 13 . . . . AID 40 | . . . . . . . . 6 10 6 12 5 . 1 . DROP 8 | . . . . . . . 1 3 1 1 1 1 . . . PICKUP 1 | . . . . . . . . . . . . 1 . . . COLLECT 14 | . . . . . . . 3 3 3 1 4 . . . . RETURN 3 | . . . . . 1 2 . . . . . . . . . Ally Attacks 434 | . . . . . 3 3 21 45 51 69 97 101 11 21 12 Total Damage 13815 | . . . . . 24 34 200 2233 1164 2762 2771 3493 348 700 86 Kills 99 | . . . . . . . 5 22 12 20 13 20 3 4 . Allies Corrupted 10 | . . . . . . . . . . . . 8 . 2 . Allies Melted . | . . . . . . . . . . . . . . . . Intel | -11 -10 -10 -9 -8 -8 -8 -8 -7 -7 -6 -6 -5 -5 -5 -5 ------- Run | Scr Mat Min Mat Mat Gar Mat Gar Fac Gar Fac Gar Fac Gar Fac Gar Robot Analysis Total . | . . . . . . . . . . . . . . . . Derelict Logs Recovered . | . . . . . . . . . . . . . . . . Drone Launches 5 | . . . . . 3 2 . . . . . . . . . Drone Recoveries 3 | . . . . . 1 2 . . . . . . . . . Exploration | -11 -10 -10 -9 -8 -8 -8 -8 -7 -7 -6 -6 -5 -5 -5 -5 ------------- Run | Scr Mat Min Mat Mat Gar Mat Gar Fac Gar Fac Gar Fac Gar Fac Gar Turns Passed 26976 | 96 377 333 492 684 991 2869 3129 3882 3096 1857 4446 2709 206 640 1169 Spaces Moved 19957 | 67 252 245 291 318 524 1315 2121 3057 1787 1882 3197 2858 348 914 781 Core 229 | 7 . . . . . 9 . 144 . 1 . 68 . . . Treads . | . . . . . . . . . . . . . . . . Legs 5607 | 60 252 245 291 318 524 1306 2121 490 . . . . . . . Wheels . | . . . . . . . . . . . . . . . . Hover 5189 | . . . . . . . . 2423 1787 979 . . . . . Flight 8932 | . . . . . . . . . . 902 3197 2790 348 914 781 Fastest Speed 32 | 50 120 120 120 120 105 105 120 50 66 32 32 32 32 32 32 Average Speed 68 | 112 120 120 120 120 118 139 120 67 76 51 32 41 33 35 38 Slowest Speed 300 | 120 120 120 120 190 185 300 190 120 150 100 32 200 35 40 40 Overloaded Moves . | . . . . . . . . . . . . . . . . Propulsion Burnouts . | . . . . . . . . . . . . . . . . Robots Hopped 86 | . . . . . . . . . . 18 2 51 6 9 . Cave-ins Triggered . | . . . . . . . . . . . . . . . . Exploration Rate (%) 46 | 4 37 71 31 17 63 59 80 34 78 29 89 32 66 22 28 Regions Visited 15 Branch Regions 1 Pre-discovered Areas . | . . . . . . . . . . . . . . . . Known Exits Taken 6 | . . . . 1 . 1 . 1 . 1 . 1 . 1 . Unknown Exits Taken 4 | 1 1 1 1 . . . . . . . . . . . . Scrap Searched 1 | . . 1 . . . . . . . . . . . . . Spaces Dug 19 | . . . . . . . . 6 . 9 4 . . . . Terrain Destroyed 33 | . . . . 1 . . . 9 . 9 4 7 . 3 . Melee 19 | . . . . . . . . 6 . 9 4 . . . . Projectile 11 | . . . . 1 . . . . . . . 7 . 3 . AOE 3 | . . . . . . . . 3 . . . . . . . Terrain Rammed . | . . . . . . . . . . . . . . . . Walls Destroyed . | . . . . . . . . . . . . . . . . Machines Disabled . | . . . . . . . . . . . . . . . . Actions | -11 -10 -10 -9 -8 -8 -8 -8 -7 -7 -6 -6 -5 -5 -5 -5 --------- Run | Scr Mat Min Mat Mat Gar Mat Gar Fac Gar Fac Gar Fac Gar Fac Gar Total 32201 | 78 298 279 398 567 788 2178 2591 4774 3473 2696 6551 4279 426 1201 1624 Wait 10547 | . 17 22 77 175 151 705 252 1538 1446 689 3063 1327 50 254 781 Move 19778 | 66 251 244 290 317 522 1314 2119 3056 1785 1848 3192 2763 335 895 781 Hop 73 | . . . . . . . . . . 15 1 43 5 9 . Pick Up 157 | 2 9 2 2 12 9 6 22 17 15 10 31 12 . 5 3 Fast Attach 114 | 7 . 2 5 7 8 10 9 14 3 17 14 10 . 6 2 Attach 52 | . . . 2 4 6 4 . 7 6 6 5 8 1 1 2 Detach 7 | . . . 1 . . . . . . 4 1 1 . . . Swap 101 | . 2 2 . 4 8 22 24 10 3 14 3 5 1 1 2 Drop 221 | . 4 4 3 18 11 16 41 28 13 19 38 14 . 7 5 Fire 591 | 3 15 3 18 30 67 87 71 72 18 37 27 80 10 23 30 Melee 122 | . . . . . 1 9 6 26 28 18 29 5 . . . Ram 2 | . . . . . . . . 1 . 1 . . . . . Kick 2 | . . . . . . 2 . . . . . . . . . Crush . | . . . . . . . . . . . . . . . . Escape Stasis 404 | . . . . . 5 . 25 . 156 18 147 11 24 . 18 Rewire 5 | . . . . . . 3 1 1 . . . . . . . Trap 25 | . . . . . . . 21 4 . . . . . . . Miscellaneous . | . . . . . . . . . . . . . . . . Route ------- -11/Scrapyard -10/Materials (discovered 2 exits: *Mat / *Min) -10/Mines -9/Materials -8/Materials -8/Garrison (discovered 3 exits: *Mat x3) -8/Materials (discovered 3 exits: *Fac x2 / Gar) -8/Garrison (discovered 3 exits: *Fac x3) -7/Factory (discovered 3 exits: *Fac / Gar / Gar) -7/Garrison (discovered 3 exits: *Fac x3) -6/Factory (discovered 4 exits: *Fac x2 / [*Low] / Gar) -6/Garrison (discovered 3 exits: *Fac x3) -5/Factory (discovered 2 exits: Gar / Gar) -5/Garrison (discovered 3 exits: *Fac x3) -5/Factory (discovered 3 exits: *Fac / *Upp / Gar) -5/Garrison History --------- Turn | Location | Event 4 | -11/Scrapyard | Discovered new exit (range 15) 97 | -11/Scrapyard | Entered Materials 150 | -10/Materials | Discovered new exit (range 12) 276 | -10/Materials | Discovered new exit (range 8) 313 | -10/Materials | Build established: Mutant 474 | -10/Materials | Entered Mines 587 | -10/Mines | Found the Drone Emporium 591 | -10/Mines | Found Prototype Device 591 | -10/Mines | Identified Thief Drone Bay 712 | -10/Mines | A weapon hastily lodged in a ceiling crevice suddenly fell to the ground 754 | -10/Mines | Discovered new exit (range 16) 807 | -10/Mines | Entered Materials 807 | -9/Materials | Evolved 2 slots: Utility x2 1210 | -9/Materials | Repaired Lgt. Armor Plating 1238 | -9/Materials | Repaired Aluminum Leg 1256 | -9/Materials | Discovered new exit (range 11) 1299 | -9/Materials | Entered another Materials area 1299 | -8/Materials | Evolved 2 slots: Utility x2 1505 | -8/Materials | Build established: Scavenger-Mutant 1982 | -8/Materials | Identified exit to Garrison 1983 | -8/Materials | Entered Garrison 2125 | -8/Garrison | Destroyed 8 combat bots 2137 | -8/Garrison | Lost 4 parts (1p1n1u1w) 2196 | -8/Garrison | Triggered checkpoint 2246 | -8/Garrison | Discovered new exit (range 10) 2360 | -8/Garrison | Discovered new exit (range 14) 2385 | -8/Garrison | Installed Relay Interface Framework 2472 | -8/Garrison | Triggered checkpoint 2472 | -8/Garrison | Triggered checkpoint 2521 | -8/Garrison | Lost 3 parts (2u1w) 2601 | -8/Garrison | Discovered new exit (range 10) 2618 | -8/Garrison | Identified exit to Materials 2648 | -8/Garrison | Triggered checkpoint 2775 | -8/Garrison | Garrison Relay disabled 2790 | -8/Garrison | Triggered checkpoint 2856 | -8/Garrison | Garrison Relay disabled 2974 | -8/Garrison | Entered Materials 3069 | -8/Materials | Identified exit to Garrison 3237 | -8/Materials | Build established: Bothacker-Mutant 3927 | -8/Materials | Build established: Scavenger-Mutant 4148 | -8/Materials | Discovered new exit (range 16) 4267 | -8/Materials | Build established: Bothacker-Mutant 4601 | -8/Materials | Core integrity fell below 50% 4882 | -8/Materials | Build established: Scavenger-Mutant 4889 | -8/Materials | Discovered new exit (range 15) 4945 | -8/Materials | Lost 3 parts (2n1u) 4975 | -8/Materials | Identified exit to Factory 5843 | -8/Materials | Entered Garrison 5843 | -8/Garrison | Accompanied by 7 allies 5952 | -8/Garrison | Triggered checkpoint 6149 | -8/Garrison | Garrison Relay disabled 6427 | -8/Garrison | Triggered checkpoint 6824 | -8/Garrison | Discovered exit to Factory (range 15) 6831 | -8/Garrison | Build established: Bothacker-Mutant 6850 | -8/Garrison | Expanded RIF knowledge: Program Shield 6907 | -8/Garrison | Triggered checkpoint 6972 | -8/Garrison | Triggered checkpoint 7042 | -8/Garrison | Triggered checkpoint 7075 | -8/Garrison | Garrison Relay disabled 7186 | -8/Garrison | Discovered exit to Factory (range 13) 7188 | -8/Garrison | Triggered checkpoint 7453 | -8/Garrison | Triggered checkpoint 7483 | -8/Garrison | Garrison Relay disabled 7607 | -8/Garrison | Discovered exit to Factory (range 15) 7644 | -8/Garrison | Triggered checkpoint 7661 | -8/Garrison | Garrison Relay disabled 7994 | -8/Garrison | Build established: Commander-Mutant 8972 | -8/Garrison | Entered Factory 8972 | -7/Factory | Accompanied by 8 allies 8972 | -7/Factory | Evolved 2 slots: Utility x2 9775 | -7/Factory | Lost 4 parts (1n1u2w) 10604 | -7/Factory | Identified exit to Garrison 10786 | -7/Factory | Discovered new exit (range 16) 12219 | -7/Factory | Identified exit to Garrison 12376 | -7/Factory | Fabricated P-60 Hacker (x2) 12572 | -7/Factory | First assault squad dispatched 12854 | -7/Factory | Entered Garrison 12854 | -7/Garrison | Accompanied by 11 allies 13044 | -7/Garrison | Triggered checkpoint 13093 | -7/Garrison | Core integrity fell below 50% 13170 | -7/Garrison | Garrison Relay disabled 13346 | -7/Garrison | Lost 3 parts (1n2u) 13626 | -7/Garrison | Triggered checkpoint 13726 | -7/Garrison | Garrison Relay disabled 13751 | -7/Garrison | Discovered new exit (range 15) 13796 | -7/Garrison | Triggered checkpoint 13921 | -7/Garrison | Triggered checkpoint 14159 | -7/Garrison | Discovered new exit (range 10) 14225 | -7/Garrison | Discovered new exit (range 10) 14238 | -7/Garrison | Expanded RIF knowledge: Threat Obfuscation 14266 | -7/Garrison | Triggered checkpoint 14269 | -7/Garrison | Garrison Relay disabled 14668 | -7/Garrison | Triggered checkpoint 14961 | -7/Garrison | Garrison Relay disabled 15950 | -7/Garrison | Entered Factory 15950 | -6/Factory | Accompanied by 12 allies 15950 | -6/Factory | Evolved 2 slots: Utility x2 16879 | -6/Factory | Discovered new exit (range 7) 17087 | -6/Factory | Build established: Bothacker-Mutant 17170 | -6/Factory | Discovered new exit (range 15) 17226 | -6/Factory | Discovered new exit (range 15) 17350 | -6/Factory | First assault squad dispatched 17676 | -6/Factory | Identified exit to Garrison 17807 | -6/Factory | Entered Garrison 17807 | -6/Garrison | Accompanied by 13 allies 17808 | -6/Garrison | Build established: Commander-Sprinter 18290 | -6/Garrison | Triggered checkpoint 18338 | -6/Garrison | Garrison Relay disabled 18495 | -6/Garrison | Spotted B-75 Beast 18512 | -6/Garrison | Triggered checkpoint 18660 | -6/Garrison | Build established: Bothacker-Sprinter 19650 | -6/Garrison | Triggered checkpoint 19730 | -6/Garrison | Build established: Commander-Sprinter 19960 | -6/Garrison | Allies destroyed B-75 Beast 20206 | -6/Garrison | Discovered new exit (range 9) 20212 | -6/Garrison | Expanded RIF knowledge: Alert ID Control 20221 | -6/Garrison | Triggered checkpoint 20225 | -6/Garrison | Core integrity fell below 50% 20527 | -6/Garrison | Garrison Relay disabled 20602 | -6/Garrison | Triggered checkpoint 20786 | -6/Garrison | Triggered checkpoint 21098 | -6/Garrison | Discovered new exit (range 19) 21132 | -6/Garrison | Triggered checkpoint 21201 | -6/Garrison | Garrison Relay disabled 21482 | -6/Garrison | Triggered checkpoint 21505 | -6/Garrison | Garrison Relay disabled 21514 | -6/Garrison | Discovered new exit (range 21) 21515 | -6/Garrison | Build established: Botlord-Sprinter 21883 | -6/Garrison | Build established: Commander-Sprinter 22253 | -6/Garrison | Entered Factory 22253 | -5/Factory | Accompanied by 17 allies 22253 | -5/Factory | Evolved 2 slots: Utility x2 22405 | -5/Factory | Identified exit to Garrison 22899 | -5/Factory | Build established: Botlord-Mutant 23274 | -5/Factory | Build established: Commander-Mutant 24566 | -5/Factory | P-70 Sage assimilated allied Veteran 5a 24628 | -5/Factory | Identified exit to Garrison 24776 | -5/Factory | Cargo convoy interrupted 24815 | -5/Factory | Core integrity fell below 50% 24861 | -5/Factory | P-70 Sage assimilated allied Soldier 5b 24962 | -5/Factory | Entered Garrison 24978 | -5/Garrison | Triggered checkpoint 25040 | -5/Garrison | Triggered checkpoint 25076 | -5/Garrison | Discovered new exit (range 10) 25108 | -5/Garrison | Triggered checkpoint 25126 | -5/Garrison | Discovered new exit (range 9) 25137 | -5/Garrison | Core integrity fell below 20% 25146 | -5/Garrison | Triggered checkpoint 25160 | -5/Garrison | Discovered new exit (range 11) 25163 | -5/Garrison | Identified exit to Factory 25166 | -5/Garrison | Expanded RIF knowledge: Autooverride 25168 | -5/Garrison | Entered Factory 25255 | -5/Factory | Fabricated H-66 Slayer (x2) 25278 | -5/Factory | Repaired Imp. Utility Shielding 25324 | -5/Factory | Discovered new exit (range 21) 25343 | -5/Factory | Identified exit to Upper Caves 25404 | -5/Factory | Build established: Hacker-Sprinter 25592 | -5/Factory | Discovered new exit (range 5) 25593 | -5/Factory | Identified exit to Factory 25807 | -5/Factory | Identified exit to Garrison 25808 | -5/Factory | Entered Garrison 25820 | -5/Garrison | Triggered checkpoint 25847 | -5/Garrison | Garrison Relay disabled 26012 | -5/Garrison | Spotted B-75 Beast 26188 | -5/Garrison | Triggered checkpoint 26197 | -5/Garrison | Triggered checkpoint 26261 | -5/Garrison | Build established: Botlord-Mutant 26977 | -5/Garrison | Destroyed by S-27 Virus with Autogun Last Messages --------------- 26801_ S-27 Virus destroyed. 26805_ System corrupted: Matter fused (-9). 26809_ Acquired 28 matter. 26875_ System corrupted: IFF burst signal emitted. 26908_ RC %HCOV,WJJDDKXNXA0%KNDPTZICGTEE9HT1UV 26932_ Penetrated by Slug. 26932_ Backup Power I destroyed. 26937_ System corrupted: Component data lost. 26948_ Soldier 6b destroyed. 26948_ Slug penetrates Soldier 6a. 26949_ Slug penetrates Wall. 26951_ Slug penetrates Soldier 6a. 26953_ System corrupted: IFF burst signal emitted. 26954_ Slug penetrates Soldier 6a. 26954_ Soldier 6a destroyed. 26954_ Penetrated by Slug. 26955_ Destroyed Phase Shifter. 26956_ Slug penetrates Wall. 26956_ Slug penetrates Virus 6a. 26956_ Virus 6a destroyed. Map ----- +----------------------------------------------------+ | ?????????????????????????????????????????????????? | | ?????????????????????????????????????????????????? | | ?????????????????????????????????????????????????? | | ?????????????????????????????????????????????????? | | ??????????????????????? ????????????????????????? | | ??????????????????????? ????????????????????????? | | ??????????????????????# ????????????????????????? | | ??????????????????????# ????????????????????????? | | ??????????????????????# ????????????????????????? | | ?????????????????""???# ##??????????????????????? | | ?????????? ??? ??s #??????????????????????? | | ?????????? ??? ? ?? s ??????????????????????? | | ?????????? ?? ?s s ??????????????????????? | | ???????????# ?# ?# #??????????????????????? | | ???????????# ## ? ## ##?????????????????????? | | ???????????" ? ?????????????????????? | | ???????????? ? ??????????????????????? | | ????????????? B ? [?###??????????????????? | | ??????????????? ? =%?# ###????????????????? | | ???????????# ???# ?# #?# " #????????????????? | | ?????????### ## ## #?# ###????????????????? | | ????????? #?# #??????????????????? | | ????????????? #?# #??????????????????? | | ????????????????? #?# #??????????????????? | | ?????????????????????#; ### ###############????? | | ??????????????????????# @; #????? | | ??????????????????????# ### ############# #????? | | ??????????????????????# #?# #???????????# #????? | | ??????????????????????# #?# #???????????# #????? | | ??????????????????????# #?# #???????????# #????? | | ??????????????????????# ###"#############"###### | | ??????????????????????# [ * ^^ | | ??????????????????????# = ^ | | ??????????????????????# ^^ | | ??????????????????????##############+###### ##### | | ???????????????????????# #?????????# #????# #???? | | ???????????????????????# #?????????# #????# #???? | | ???????????????????????# #??#++#####+###### #???? | | ???????????????????????# #### =#???? | | ???????????????????????# " = #???? | | ???????????????????????####### ##### #####???? | | ????????????????????????????#"" ""#??# #???????? | | ????????????????????????????#######??##"##???##### | | ??????????????????????????????????????# ###### | | ??????????????????????????????????????# | | ??????????????????????????????????????######## | | ?????????????????????????????????????????????# | | ?????????????????????????????????????????????#"" " | | ?????????????????????????????????????????????#" | | ?????????????????????????????????????????????#" | +----------------------------------------------------+ Best States ------------- Heat Dissipation 74 Energy Generation 15 Energy Capacity 275 Matter Stores 300 Matter Capacity 300 Sight Range 22 Robot Scan Range 16 Terrain Scan Range 16 Terrain Scan Density 10 Jamming Range 12 Armor Coverage 375 Propulsion Shielding 66 Utility Shielding 66 Evasion (%) 63 Targeting Accuracy 5 Offensive Hacking 32 Defensive Hacking 20 Relay Coupler Types 8 Relay Coupler Value 188 Authchip Count 4 Item Schematics ----------------- None Robot Schematics ------------------ P-60 Hacker | -7/Factory | Hacked L-41 Fighter | -7/Factory | Hacked H-66 Slayer | -6/Factory | Hacked Fabricated ------------ P-60 Hacker | x2 | -7/Factory H-66 Slayer | x2 | -5/Factory | Authchip Alien Tech Used ----------------- None Achievements -------------- None Challenges ------------ None Game ------ Seed AbsorptionGrapheneNullifier Manual? 0 Play Time 03:40:12 Cumulative 352.5 hours Start 2022.10.10 @ 09:35:33 End 2022.10.20 @ 19:01:08 Sessions 9 Manual Loads 0 Difficulty Rogue Special Mode None Game No. 620 Rogue 465 Adventurer 148 Explorer 7 Win Type - Total 12 Types 10/0/1/1/0/0/0/0/0 Lore% 75 Gallery% 87 Achievement% 68 Wizard Run 0 Options --------- ASCII 0 Keyboard 0 Movement Numpad Keybinds 0 Fullscreen 2 Font 18/SmallcapsGlow Map View 76x50 Tactical HUD 1 Map Filters NONE Filters NONE Steam 1 RUN: 57d8e34e-6fdd-4f5e-a278-e4fe08ca0934